bitfinex/quotes_SOLUSD_20250410
["timestamp","ask_amount","ask_price","bid_price","bid_amount"]
[1744250697154,29.36942561,116.96,116.95,0.063]
[1744250699372,48.01907447,116.96,116.95,0.063]
[1744250699574,48.01907447,116.96,116.95,0.0001]
[1744250706394,52.84834886,116.93,116.92,0.063]
[1744250706687,18.933972,116.92,116.88,0.063]
[1744250706876,20.81952561,116.89,116.88,0.063]
[1744250707881,8.83932314,116.89,116.88,0.063]
[1744250708077,29.37452561,116.89,116.88,0.063]
[1744250710769,20.53520247,116.89,116.88,0.063]
[1744250711691,8.1987,116.93,116.88,0.063]
[1744250711874,20.53520247,116.92,116.88,59.34520463]
[1744250712471,29.08830247,116.92,116.88,59.34520463]
[1744250712768,29.08830247,116.92,116.88,67.90090463]
[1744250713184,20.53520247,116.92,116.88,67.90090463]
[1744250713765,29.08820247,116.92,116.88,67.90090463]
[1744250714293,29.08820247,116.92,116.88,59.34520463]
[1744250714800,20.53520247,116.89,116.88,0.063]
[1744250715393,20.81952561,116.89,116.88,0.063]
[1744250715988,0.28432314,116.9,116.88,0.063]
[1744250716190,20.53520247,116.89,116.88,0.063]
[1744250716696,29.09020247,116.89,116.88,0.063]
[1744250716990,29.37452561,116.89,116.88,0.063]
[1744250717390,68.55937694,116.89,116.88,0.0001]
[1744250717570,18.933972,116.88,116.85,59.34520463]
[1744250717770,20.81952561,116.86,116.85,0.063]
[1744250718810,56.30327447,116.86,116.85,0.063]
[1744250719396,15.50452314,116.86,116.85,0.063]
[1744250719573,36.03972561,116.86,116.85,0.063]
[1744250720382,34.154172,116.86,116.85,0.063]
[1744250720685,36.03972561,116.86,116.85,0.063]
[1744250722893,54.68937447,116.86,116.85,0.063]
[1744250724593,36.03972561,116.86,116.85,0.063]
[1744250725800,26.0,116.84,116.83,0.063]
[1744250725986,65.46917447,116.84,116.83,0.063]
[1744250726186,46.81952561,116.84,116.83,0.063]
[1744250727602,55.37822561,116.84,116.83,0.063]
[1744250728980,34.84302314,116.84,116.83,0.063]
[1744250729199,29.37822561,116.84,116.83,0.063]
[1744250729374,29.09390247,116.84,116.83,0.063]
[1744250729876,29.37822561,116.84,116.83,0.063]
[1744250730408,48.02787447,116.84,116.83,0.063]
[1744250730988,49.56247447,116.84,116.83,0.0001]
[1744250733300,42.20269784,116.84,116.83,0.0001]
[1744250735302,7.9933,116.9,116.83,72.45773047]
[1744250735493,13.17542584,116.86,116.83,59.28230463]
[1744250735892,13.17542584,116.84,116.83,0.0001]
[1744250737401,21.73412584,116.84,116.83,0.0001]
[1744250737699,21.73402584,116.85,116.83,0.0001]
[1744250738096,13.17542584,116.84,116.83,0.0001]
[1744250738696,8.5582,116.85,116.83,0.0001]
[1744250738884,21.73362584,116.85,116.83,0.0001]
[1744250739401,13.17542584,116.84,116.83,0.0001]
[1744250739704,13.45974898,116.84,116.83,0.0001]
[1744250740813,22.01844898,116.84,116.83,0.0001]
[1744250742904,21.73412584,116.84,116.83,0.0001]
[1744250743117,8.5587,116.84,116.83,0.0001]
[1744250743291,21.73412584,116.84,116.83,0.0001]
[1744250744803,8.84222314,116.85,116.83,0.0001]
[1744250745223,13.17542584,116.84,116.83,0.0001]
[1744250745834,21.73332584,116.85,116.83,0.0001]
[1744250746011,13.17542584,116.84,116.83,0.0001]
[1744250746921,21.73412584,116.84,116.83,0.0001]
[1744250747625,8.5587,116.84,116.83,0.0001]
[1744250747823,21.73192584,116.87,116.83,0.0001]
[1744250748133,13.17542584,116.87,116.83,59.28230463]
[1744250748504,13.17542584,116.87,116.83,72.45773047]
[1744250748914,13.17542584,116.87,116.83,81.01673047]
[1744250749120,13.17542584,116.86,116.83,59.28230463]
[1744250749308,21.73212584,116.87,116.83,59.28230463]
[1744250750826,21.73212584,116.87,116.83,67.84130463]
[1744250751509,21.73212584,116.87,116.83,59.28230463]
[1744250752005,21.73212584,116.87,116.83,67.84150463]
[1744250752208,21.73212584,116.87,116.83,59.28230463]
[1744250753428,13.17542584,116.86,116.83,59.28230463]
[1744250753627,21.73212584,116.87,116.83,59.28230463]
[1744250754810,13.17542584,116.86,116.83,59.28230463]
[1744250755422,21.73322584,116.86,116.83,59.28230463]
[1744250757635,8.5578,116.86,116.83,59.28230463]
[1744250759033,13.17542584,116.87,116.83,67.84160463]
[1744250759735,21.73202584,116.87,116.83,59.28230463]
[1744250759929,13.17542584,116.86,116.83,59.28230463]
[1744250761216,8.5566,116.87,116.83,59.28230463]
[1744250761217,13.17542584,116.85,116.83,59.28230463]
[1744250761417,8.5583,116.85,116.83,59.28230463]
[1744250762034,8.5576,116.86,116.83,59.28230463]
[1744250762838,21.73302584,116.86,116.83,59.28230463]
[1744250763353,13.17542584,116.87,116.83,67.84160463]
[1744250764534,21.73212584,116.87,116.83,67.84160463]
[1744250766948,13.17542584,116.87,116.83,67.84160463]
[1744250767249,13.20542584,116.89,116.84,13.17542584]
[1744250767449,13.20542584,116.89,116.84,72.45763047]
[1744250767828,0.03,116.89,116.85,13.17542584]
[1744250768451,8.585,116.89,116.85,13.17542584]
[1744250769047,0.03,116.89,116.85,21.73282584]
[1744250771453,13.17542584,116.88,116.84,59.28220463]
[1744250771638,13.20542584,116.89,116.84,72.45763047]
[1744250772826,13.17542584,116.88,116.84,59.28220463]
[1744250773119,13.17542584,116.88,116.84,67.84090463]
[1744250773327,0.03,116.89,116.85,13.17542584]
[1744250773531,0.03,116.89,116.86,21.73262584]
[1744250773957,0.03,116.89,116.86,8.5572]
[1744250774251,0.03,116.89,116.85,29.55292584]
[1744250774944,0.03,116.89,116.86,13.17542584]
[1744250775140,0.03,116.89,116.87,14.80642584]
[1744250775449,0.03,116.89,116.87,82.64483047]
[1744250775650,0.03,116.89,116.87,69.46940463]
[1744250775952,0.03,116.89,116.88,19.17512584]
[1744250776455,0.03,116.89,116.88,101.39379602]
[1744250776948,0.03,116.89,116.88,65.28190463]
[1744250777148,13.20542584,116.89,116.86,59.28220463]
[1744250777333,0.03,116.89,116.86,59.28220463]
[1744250777534,13.17542584,116.88,116.86,59.28220463]
[1744250778545,21.76052584,116.89,116.86,59.28220463]
[1744250779543,0.03,116.89,116.86,59.28220463]
[1744250780430,8.5851,116.89,116.86,59.28220463]
[1744250780758,21.76052584,116.89,116.86,59.28220463]
[1744250782058,8.5851,116.89,116.86,59.28220463]
[1744250783050,0.03,116.89,116.86,81.01463047]
[1744250783253,0.03,116.89,116.87,13.17542584]
[1744250783447,0.03,116.89,116.87,72.45763047]
[1744250783865,0.03,116.89,116.88,13.17542584]
[1744250784047,0.03,116.89,116.88,21.73112584]
[1744250784658,0.03,116.89,116.88,109.11397933]
[1744250785159,0.03,116.92,116.89,59.25220463]
[1744250785342,0.03,116.92,116.89,72.42763047]
[1744250785741,0.03,116.92,116.89,59.25220463]
[1744250786145,13.20542584,116.92,116.89,59.25220463]
[1744250787169,13.20542584,116.92,116.87,72.42763047]
[1744250787667,13.20542584,116.92,116.87,80.98363047]
[1744250788044,21.75892584,116.92,116.87,80.98363047]
[1744250788247,8.5835,116.92,116.88,13.17542584]
[1744250788561,0.03,116.92,116.88,13.17542584]
[1744250788764,8.583,116.92,116.88,13.17542584]
[1744250790460,8.583,116.92,116.88,21.73102584]
[1744250791068,8.583,116.92,116.88,80.98323047]
[1744250791275,21.75842584,116.92,116.88,72.42763047]
[1744250792772,21.75842584,116.92,116.88,59.25220463]
[1744250794061,8.583,116.92,116.88,59.25220463]
[1744250794574,21.75842584,116.92,116.88,59.25220463]
[1744250795574,8.583,116.92,116.88,59.25220463]
[1744250795875,0.03,116.92,116.88,80.98333047]
[1744250796275,0.03,116.92,116.89,13.17542584]
[1744250796461,0.03,116.92,116.9,13.17542584]
[1744250797177,0.03,116.92,116.9,21.72932584]
[1744250799677,0.03,116.92,116.9,80.98153047]
[1744250801590,0.03,116.92,116.91,31.8250747]
[1744250802585,0.03,116.92,116.91,40.3785747]
[1744250803778,0.03,116.94,116.93,77.87185349]
[1744250803983,0.03,116.94,116.93,98.86727933]
[1744250806478,0.03,116.94,116.93,94.24395349]
[1744250806680,0.03,116.94,116.93,107.41937933]
[1744250808375,0.03,116.94,116.93,94.24395349]
[1744250808670,0.03,116.94,116.93,107.41937933]
[1744250809480,0.03,116.94,116.93,80.21763047]
[1744250809683,0.03,116.94,116.93,88.76973047]
[1744250810489,0.03,116.94,116.93,59.22220463]
[1744250811486,28.20222584,116.94,116.92,59.22220463]
[1744250811681,13.17542584,116.93,116.92,59.22220463]
[1744250811883,29.73002584,116.94,116.9,67.04220463]
[1744250815084,29.73002584,116.94,116.9,75.59650463]
[1744250816089,29.73002584,116.94,116.9,67.04220463]
[1744250818013,16.5546,116.94,116.9,67.04220463]
[1744250819505,29.73002584,116.94,116.9,67.04220463]
[1744250821013,13.17542584,116.93,116.9,67.04220463]
[1744250821197,13.17542584,116.92,116.9,59.22220463]
[1744250821996,37.933,116.94,116.9,59.22220463]
[1744250822201,13.17542584,116.92,116.9,59.22220463]
[1744250822399,13.17542584,116.93,116.9,59.22220463]
[1744250823216,8.5528,116.92,116.9,59.22220463]
[1744250826018,21.72822584,116.92,116.9,59.22220463]
[1744250826497,8.5528,116.92,116.9,59.22220463]
[1744250827921,8.0033,116.94,116.9,59.22220463]
[1744250828215,8.0033,116.94,116.9,72.39763047]
[1744250828416,16.555,116.94,116.9,72.39763047]
[1744250828716,16.555,116.94,116.9,59.22220463]
[1744250828917,13.17542584,116.93,116.9,59.22220463]
[1744250829302,13.17542584,116.92,116.9,59.22220463]
[1744250829716,8.5535,116.91,116.87,80.21763047]
[1744250829906,13.17542584,116.9,116.87,59.22220463]
[1744250830703,13.17542584,116.89,116.87,59.22220463]
[1744250831721,8.5557,116.88,116.87,59.22220463]
[1744250832600,8.5554,116.89,116.87,59.22220463]
[1744250833010,21.73082584,116.89,116.87,59.22220463]
[1744250835820,21.73082584,116.89,116.85,59.28520463]
[1744250836127,13.17542584,116.88,116.85,59.28520463]
[1744250838125,8.5565,116.87,116.85,59.28520463]
[1744250839819,21.73192584,116.87,116.85,59.28520463]
[1744250841334,8.09402314,116.9,116.85,59.28520463]
[1744250841639,16.3644,116.9,116.86,13.17542584]
[1744250842318,21.72882584,116.92,116.87,21.73192584]
[1744250842639,8.5534,116.92,116.88,13.17542584]
[1744250842831,21.72882584,116.92,116.87,80.95413047]
[1744250844306,30.17424898,116.93,116.88,21.73062584]
[1744250844512,16.7145,116.93,116.89,13.17542584]
[1744250844733,8.1621,116.93,116.89,13.17542584]
[1744250844925,29.88982584,116.93,116.89,13.17542584]
[1744250845233,29.88982584,116.93,116.88,80.95283047]
[1744250845619,8.1621,116.93,116.89,13.17542584]
[1744250845817,21.75702584,116.94,116.89,72.39763047]
[1744250846030,0.03,116.94,116.9,13.17542584]
[1744250846211,8.5814,116.94,116.9,72.39763047]
[1744250846412,21.75682584,116.94,116.9,67.77620463]
[1744250846613,21.75682584,116.94,116.9,80.95163047]
[1744250846832,0.03,116.94,116.91,13.17542584]
[1744250847133,0.03,116.94,116.93,13.17542584]
[1744250847435,0.03,116.94,116.93,91.04727933]
[1744250848532,0.03,116.94,116.93,99.59937933]
[1744250848734,0.03,116.96,116.94,59.19220463]
[1744250848939,0.03,116.96,116.95,13.17542584]
[1744250849331,0.03,116.96,116.95,20.52068292]
[1744250850524,0.03,116.96,116.95,29.07128292]
[1744250851139,0.03,116.96,116.94,96.08388755]
[1744250851335,0.03,116.96,116.94,87.53288755]
[1744250852343,0.03,116.96,116.94,96.08408755]
[1744250859143,0.03,116.96,116.94,87.53288755]
[1744250859530,0.03,116.96,116.94,96.08408755]
[1744250860544,0.03,116.96,116.94,67.01220463]
[1744250862039,0.03,116.96,116.94,96.08418755]
[1744250862244,0.03,116.96,116.95,20.52068292]
[1744250862432,36.87572252,117.0,116.95,20.52068292]
[1744250862740,36.87572252,117.0,116.96,20.52068292]
[1744250863239,36.87572252,117.0,116.96,29.07038292]
[1744250863440,8.5768,117.01,116.98,20.52068292]
[1744250863641,8.5768,117.01,116.98,79.71288755]
[1744250864145,8.5768,117.01,116.98,59.19220463]
[1744250865348,29.09748292,117.01,116.98,59.19220463]
[1744250868455,0.03,117.01,116.98,59.19220463]
[1744250870656,0.03,117.01,116.98,80.87029436]
[1744250871233,0.03,117.01,116.99,13.12998973]
[1744250871741,0.03,117.01,116.99,21.67718973]
[1744250872651,0.03,117.01,116.99,80.86939436]
[1744250873043,0.03,117.01,116.99,67.73940463]
[1744250873554,0.03,117.01,116.99,80.86939436]
[1744250878060,0.03,117.01,117.0,13.12998973]
[1744250879960,0.03,117.01,117.0,21.67698973]
[1744250880152,0.03,117.01,116.99,72.32219436]
[1744250880569,0.03,117.01,116.99,59.19220463]
[1744250880865,0.03,117.01,116.99,80.86969436]
[1744250881067,0.03,117.01,117.0,13.12998973]
[1744250881566,0.03,117.01,117.0,31.77963859]
[1744250881767,0.03,117.01,117.0,90.97184322]
[1744250882242,0.03,117.04,117.02,18.64964886]
[1744250882450,0.03,117.04,117.03,13.12998973]
[1744250883350,0.03,117.04,117.03,31.77963859]
[1744250883656,0.03,117.04,117.03,90.94184322]
[1744250884365,0.03,117.04,117.03,99.48664322]
[1744250884558,0.03,117.04,117.03,80.83699436]
[1744250887065,0.03,117.04,117.03,72.29219436]
[1744250887566,0.03,117.04,117.03,80.83699436]
[1744250888654,0.03,117.04,117.03,99.48664322]
[1744250889881,0.03,117.04,117.03,59.16220463]
[1744250891869,0.03,117.04,117.03,72.29219436]
[1744250892079,0.03,117.04,117.03,99.48664322]
[1744250892672,0.03,117.04,117.03,80.83699436]
[1744250894289,0.03,117.04,117.03,59.16220463]
[1744250894775,0.03,117.04,117.03,67.70700463]
[1744250895164,0.03,117.04,117.03,59.16220463]
[1744250901892,8.574,117.04,117.03,59.16220463]
[1744250905196,21.70398973,117.04,117.03,59.16220463]
[1744250906585,44.64918973,117.04,116.99,59.16220463]
[1744250906887,13.12998973,117.01,116.99,59.16220463]
[1744250908894,21.67688973,117.01,116.99,59.16220463]
[1744250909397,13.12998973,117.0,116.99,59.16220463]
[1744250910876,21.67698973,117.0,116.99,59.16220463]
[1744250911082,8.547,117.0,116.99,59.16220463]
[1744250911284,21.67698973,117.0,116.99,59.16220463]
[1744250911485,8.547,117.0,116.99,59.16220463]
[1744250911994,1.615,117.04,116.99,59.16220463]
[1744250912178,14.74498973,117.04,116.99,72.29219436]
[1744250912903,23.28938973,117.04,116.99,80.83969436]
[1744250918999,21.67518973,117.03,116.99,67.70970463]
[1744250919187,8.5452,117.03,116.99,67.70970463]
[1744250920226,8.5452,117.03,116.99,17.30473163]
[1744250921010,13.12998973,117.02,116.99,8.75723163]
[1744250921589,13.12998973,117.01,116.99,8.75723163]
[1744250922894,21.67658973,117.01,116.99,8.75723163]
[1744250925102,8.5466,117.01,116.99,8.75723163]
[1744250925892,8.83022314,117.02,116.99,8.75723163]
[1744250926487,21.67518973,117.03,116.99,17.30483163]
[1744250926813,8.5452,117.03,116.99,30.43482136]
[1744250927214,21.67518973,117.03,116.99,17.30483163]
[1744250929814,8.5452,117.03,116.99,17.30483163]
[1744250930019,21.67518973,117.03,116.99,17.30483163]
[1744250931716,21.67518973,117.03,116.99,89.95723163]
[1744250932221,21.67518973,117.03,116.99,98.50473163]
[1744250932925,8.5452,117.03,116.99,111.63472136]
[1744250933625,8.5452,117.03,116.99,103.08722136]
[1744250933807,8.5452,117.03,116.99,89.95723163]
[1744250934014,21.67518973,117.03,116.99,89.95723163]
[1744250937508,21.67518973,117.03,116.99,98.50493163]
[1744250937826,8.5743,117.04,117.0,20.92998973]
[1744250938024,8.5743,117.04,117.0,102.12998973]
[1744250938225,0.03,117.04,117.0,89.0]
[1744250938421,21.70418973,117.04,117.0,89.0]
[1744250939233,8.5742,117.04,117.0,89.0]
[1744250939432,8.5742,117.04,117.01,8.5462]
[1744250939635,8.5742,117.04,117.0,97.5466]
[1744250940835,0.03,117.04,117.0,97.5466]
[1744250941130,0.03,117.04,117.0,110.67658973]
[1744250941946,0.03,117.04,117.01,13.12998973]
[1744250942235,0.03,117.04,117.03,13.12998973]
[1744250942435,0.03,117.04,117.03,94.32998973]
[1744250942816,0.03,117.04,117.03,112.97963859]
[1744250943728,0.03,117.06,117.04,18.64964886]
[1744250943933,0.03,117.08,117.07,28.33844886]
[1744250944140,0.03,117.08,117.07,122.66843859]
[1744250944433,0.03,117.08,117.07,122.95276173]
[1744250944619,0.03,117.09,117.07,122.95276173]
[1744250944823,0.03,117.09,117.08,13.12998973]
[1744250945036,0.03,117.1,117.09,18.64964886]
[1744250945256,0.03,117.1,117.09,39.57963859]
[1744250945533,0.03,117.11,117.09,120.77963859]
[1744250945831,0.03,117.13,117.1,37.77933859]
[1744250946034,0.03,117.13,117.12,84.29959751]
[1744250946211,0.03,117.13,117.12,167.13859751]
[1744250947316,0.03,117.15,117.13,0.28432314]
[1744250947517,0.03,117.15,117.13,39.86396173]
[1744250948038,0.03,117.15,117.13,39.57963859]
[1744250948224,0.03,117.15,117.13,48.11713859]
[1744250949323,0.03,117.15,117.13,55.43537517]
[1744250950333,0.03,117.15,117.13,55.71969831]
[1744250952142,0.03,117.15,117.14,81.17]
[1744250953227,6.0178,117.22,117.15,18.933972]
[1744250953434,8.5299,117.24,117.19,20.44822631]
[1744250953640,8.2227,117.25,117.22,20.44822631]
[1744250953945,20.47822631,117.26,117.22,101.61822631]
[1744250954329,0.03,117.26,117.22,101.61822631]
[1744250954732,0.03,117.26,117.22,91.7350232]
[1744250954932,0.03,117.26,117.25,20.44822631]
[1744250955668,0.03,117.26,117.25,129.08089831]
[1744250956030,0.03,117.26,117.25,128.79657517]
[1744250956669,0.03,117.26,117.25,108.34834886]
[1744250956966,0.03,117.26,117.25,128.79657517]
[1744250957173,21.3074,117.34,117.25,128.79657517]
[1744250957174,6.5774,117.35,117.26,18.64964886]
[1744250957469,20.44822631,117.31,117.27,7.78]
[1744250957635,0.28432314,117.34,117.27,7.78]
[1744250957837,20.44822631,117.31,117.27,7.78]
[1744250958035,20.44822631,117.31,117.27,16.3073]
[1744250958237,0.14216157,117.34,117.27,16.3073]
[1744250958459,0.28432314,117.34,117.27,16.3073]
[1744250958676,20.44822631,117.31,117.27,16.3073]
[1744250958964,0.28432314,117.34,117.27,7.78]
[1744250958965,20.44822631,117.29,117.27,7.78]
[1744250959182,27.02562631,117.28,117.22,97.4809]
[1744250959477,20.44822631,117.27,117.22,117.92912631]
[1744250959977,20.44822631,117.26,117.22,88.95]
[1744250960272,20.44822631,117.25,117.22,88.95]
[1744250960480,20.44822631,117.24,117.22,88.95]
[1744250960851,20.44822631,117.25,117.22,88.95]
[1744250962580,28.97742631,117.25,117.22,88.95]
[1744250962960,20.44822631,117.24,117.22,88.95]
[1744250963462,20.44822631,117.23,117.22,7.78]
[1744250963663,20.44822631,117.23,117.19,88.95]
[1744250964349,20.44822631,117.22,117.19,88.95]
[1744250964553,30.13542314,117.25,117.19,88.95]
[1744250964554,20.44822631,117.23,117.19,88.95]
[1744250964772,20.44822631,117.22,117.19,88.95]
[1744250965280,20.44822631,117.23,117.19,88.95]
[1744250965979,20.44822631,117.23,117.19,109.39822631]
[1744250966181,20.44822631,117.23,117.19,88.95]
[1744250966344,20.44822631,117.23,117.19,109.39822631]
[1744250967488,50.30142631,117.24,117.19,109.39822631]
[1744250967786,28.97702631,117.25,117.21,20.44822631]
[1744250968095,8.5288,117.25,117.22,20.44822631]
[1744250968265,8.5288,117.25,117.22,101.61822631]
[1744250968589,8.5276,117.27,117.23,28.22822631]
[1744250968893,8.5276,117.27,117.24,20.44822631]
[1744250969273,8.5276,117.27,117.23,28.22822631]
[1744250969474,6.5774,117.28,117.26,20.44822631]
[1744250969673,30.61972631,117.29,117.26,81.17]
[1744250969877,0.28432314,117.26,117.23,88.95]
[1744250970068,20.44822631,117.25,117.21,81.17]
[1744250971202,20.44822631,117.24,117.21,81.17]
[1744250971992,8.5302,117.23,117.21,81.17]
[1744250972493,20.44822631,117.22,117.18,81.17]
[1744250972694,20.44822631,117.21,117.18,81.17]
[1744250973800,20.44822631,117.22,117.18,81.17]
[1744250973972,8.5316,117.21,117.18,81.17]
[1744250975901,28.97982631,117.21,117.18,81.17]
[1744250976299,8.5316,117.21,117.18,81.17]
[1744250976602,20.44822631,117.19,117.18,81.17]
[1744250976912,20.44822631,117.19,117.17,0.063]
[1744250977082,20.44822631,117.2,117.17,0.063]
[1744250977482,8.5331,117.19,117.17,0.063]
[1744250981915,28.98132631,117.19,117.17,0.063]
[1744250982817,20.44822631,117.18,117.17,0.063]
[1744250983584,28.98132631,117.19,117.17,0.063]
[1744250983988,20.44822631,117.18,117.17,0.063]
[1744250985341,28.97982631,117.21,117.17,0.063]
[1744250985499,28.97982631,117.21,117.17,81.233]
[1744250985808,8.5316,117.21,117.17,110.21562631]
[1744250986215,28.97982631,117.21,117.17,109.46122631]
[1744250987692,28.97982631,117.21,117.17,89.013]
[1744250988190,8.5316,117.21,117.17,89.013]
[1744250988498,28.97982631,117.21,117.17,97.5475]
[1744250988719,8.5316,117.21,117.17,117.99572631]
[1744250989349,8.5316,117.21,117.17,97.5475]
[1744250989653,8.5316,117.21,117.17,109.46122631]
[1744250990018,28.97982631,117.21,117.17,89.013]
[1744250990221,8.5316,117.21,117.17,89.013]
[1744250990524,28.97982631,117.21,117.17,89.013]
[1744250991425,20.44822631,117.21,117.17,89.013]
[1744250991921,20.44822631,117.2,117.17,89.013]
[1744250993439,8.5331,117.19,117.17,89.013]
[1744250994258,20.44822631,117.18,117.17,0.063]
[1744250995645,28.98202631,117.18,117.17,0.063]
[1744251000755,8.5338,117.18,117.17,0.063]
[1744251001453,8.5324,117.2,117.17,20.51122631]
[1744251003042,8.5324,117.2,117.17,0.063]
[1744251003544,28.98062631,117.2,117.17,0.063]
[1744251004555,8.5324,117.2,117.17,0.063]
[1744251005961,28.98062631,117.2,117.17,0.063]
[1744251009360,21.62046887,117.2,117.17,0.063]
[1744251011966,8.532,117.21,117.17,0.063]
[1744251012272,13.08806887,117.23,117.18,13.08806887]
[1744251012567,21.61866887,117.23,117.18,81.17]
[1744251012761,21.61866887,117.23,117.18,94.25806887]
[1744251013370,50.29405066,117.24,117.19,20.43985066]
[1744251013870,20.43985066,117.23,117.19,20.43985066]
[1744251014870,28.96935066,117.24,117.19,28.97285066]
[1744251015065,28.96935066,117.24,117.19,36.75285066]
[1744251015747,28.96935066,117.24,117.2,20.43985066]
[1744251015947,28.96935066,117.24,117.19,36.75285066]
[1744251016770,28.96935066,117.24,117.19,117.92285066]
[1744251018272,8.5295,117.24,117.2,20.43985066]
[1744251018480,8.5291,117.25,117.21,20.43985066]
[1744251018677,20.43985066,117.26,117.22,20.43985066]
[1744251018858,0.28432314,117.27,117.22,20.43985066]
[1744251019052,20.7241738,117.27,117.22,20.43985066]
[1744251019253,20.43985066,117.26,117.22,20.43985066]
[1744251019668,20.58201223,117.27,117.22,20.43985066]
[1744251019978,29.10931223,117.27,117.22,20.43985066]
[1744251020153,29.10931223,117.27,117.23,20.43985066]
[1744251020573,21.97305066,117.29,117.24,20.43985066]
[1744251020769,8.5258,117.29,117.25,20.43985066]
[1744251021586,8.5258,117.29,117.26,20.43985066]
[1744251021752,8.5255,117.3,117.27,20.43985066]
[1744251022373,8.5547,117.31,117.27,20.43985066]
[1744251022854,0.03,117.31,117.29,20.43985066]
[1744251023164,0.03,117.31,117.28,20.43985066]
[1744251023769,0.03,117.31,117.28,28.96615066]
[1744251024371,0.03,117.31,117.3,20.43985066]
[1744251024675,0.03,117.31,117.3,101.60985066]
[1744251025459,0.03,117.31,117.3,120.25949952]
[1744251025975,0.03,117.31,117.3,128.78459952]
[1744251026458,0.03,117.31,117.3,130.44079952]
[1744251027185,0.03,117.31,117.3,103.26605066]
[1744251028476,0.03,117.31,117.3,81.17]
[1744251028780,20.46985066,117.31,117.28,81.17]
[1744251029369,20.43985066,117.3,117.28,81.17]
[1744251029780,26.0,117.27,117.26,81.17]
[1744251029964,46.43985066,117.27,117.23,81.17]
[1744251030172,28.96815066,117.26,117.23,81.17]
[1744251030356,50.41596647,117.27,117.23,81.17]
[1744251030561,34.5277,117.27,117.23,105.58846647]
[1744251030862,50.41596647,117.27,117.23,97.05826647]
[1744251031062,50.41596647,117.27,117.23,81.17]
[1744251032084,8.5251,117.3,117.25,15.88826647]
[1744251032261,15.88826647,117.29,117.25,88.95]
[1744251032962,15.88826647,117.3,117.25,104.83826647]
[1744251033561,15.88826647,117.3,117.26,15.88826647]
[1744251033762,15.88826647,117.3,117.25,104.83826647]
[1744251034072,15.88826647,117.29,117.25,88.95]
[1744251034372,24.41396647,117.3,117.25,113.36666647]
[1744251036782,24.41396647,117.3,117.25,104.83826647]
[1744251036963,15.88826647,117.29,117.25,97.05826647]
[1744251037164,15.88826647,117.29,117.25,81.17]
[1744251037693,8.5257,117.3,117.25,105.58676647]
[1744251037874,24.41396647,117.3,117.25,105.58676647]
[1744251038674,0.03,117.31,117.26,50.84581533]
[1744251038869,15.91826647,117.31,117.26,50.84581533]
[1744251039486,41.91826647,117.31,117.26,50.84581533]
[1744251040183,0.03,117.31,117.28,15.88826647]
[1744251040387,0.03,117.31,117.28,97.05826647]
[1744251040767,0.03,117.31,117.28,105.58476647]
[1744251041968,0.03,117.31,117.29,15.88826647]
[1744251042888,0.03,117.31,117.29,24.41396647]
[1744251043268,0.03,117.31,117.29,15.88826647]
[1744251043784,0.03,117.31,117.28,89.6962]
[1744251043970,0.03,117.31,117.29,15.88826647]
[1744251044671,0.03,117.31,117.29,24.41386647]
[1744251046172,0.03,117.31,117.29,105.58386647]
[1744251048389,0.03,117.31,117.29,97.05826647]
[1744251048576,0.03,117.31,117.29,81.17]
[1744251050081,15.91826647,117.31,117.29,81.17]
[1744251051873,8.5251,117.3,117.29,81.17]
[1744251052785,24.41336647,117.3,117.29,81.17]
[1744251053371,8.5251,117.3,117.29,81.17]
[1744251055303,0.03,117.31,117.29,81.17]
[1744251055687,0.03,117.31,117.29,89.6958]
[1744251056579,0.03,117.31,117.29,81.17]
[1744251057103,0.03,117.31,117.29,89.6955]
[1744251060604,0.03,117.31,117.29,81.17]
[1744251061589,8.0231,117.3,117.24,81.17]
[1744251061789,15.88826647,117.27,117.24,81.17]
[1744251062005,24.41576647,117.27,117.24,81.17]
[1744251062603,15.88826647,117.26,117.24,81.17]
[1744251063114,24.41576647,117.27,117.24,81.17]
[1744251063502,15.88826647,117.26,117.24,81.17]